Cogmind - Beta 15 @@@ ROGUE MODE // 2025.05.18 @ 01:19:50 Player: Sunvar Result: Self-destructed Performance ------------- Evolutions (4) 2000 Regions Visited (5) 1000 Robots Destroyed (34) 170 Value Destroyed (911) 911 Prototype IDs (29) 580 Alien Tech Used (0) 0 Bonus (1117) 1117 TOTAL SCORE: 5778 Bonus ------- Follower Combat Kills 339 Registered with UFD 300 Met Optimus in HQ 500 Friendly Fire -22 Cogmind --------- Core Integrity 805/850 Matter 120/300 Energy 296/310 System Corruption 0% Temperature Cool (36) Movement Treading (340) Ox2 Location -6/Factory Parts ------- > --- POWER (2) -------- Fission Core > --- PROPULSION (4) --- Improved Treads Spiked Treads Armored Wheel > --- UTILITY (7) ------ Advanced Heat Sink Huge Storage Unit Makeshift Light Armor Plating Makeshift Light Armor Plating A0-MCA's Component Scanner > --- WEAPON (2) ------- Particle Cannon Ion Cannon > --- INVENTORY (25) --- Improved Treads Improved Treads Spiked Treads High-capacity Matter Pod (200) Experimental Terrain Scan Processor Seismic Detector Hardened Heavy Armor Plating Makeshift Light Armor Plating Gun Armor Hardlight Generator Hardlight Generator Particle Cannon Particle Cannon KE Penetrator Mini Grenade Launcher Datajack LU-1G1's Laser Shovel Plasma Cutter Makeshift Spear DRS Beacon (Ready) Peak State ------------ > --- POWER ------------ Light Nuclear Core Fission Core > --- PROPULSION ------- Improved Treads Spiked Treads Wheel Armored Wheel > --- UTILITY ---------- Advanced Heat Sink Huge Storage Unit Expert System Makeshift Light Armor Plating Makeshift Light Armor Plating Hardlight Generator A0-MCA's Component Scanner > --- WEAPON ----------- Particle Cannon Ion Cannon > --- INVENTORY -------- Improved Treads Improved Treads Spiked Treads High-capacity Matter Pod Experimental Terrain Scan Processor Seismic Detector Hardened Heavy Armor Plating Makeshift Light Armor Plating Gun Armor Hardlight Generator Hardlight Generator Particle Cannon Particle Cannon KE Penetrator Mini Grenade Launcher Datajack LU-1G1's Laser Shovel Plasma Cutter Makeshift Spear DRS Beacon [Rating: 60] Favorites ----------- Power Ion Engine Engine Ion Engine Power Core Fission Core Propulsion Improved Treads Treads Improved Treads Wheel Compact Wheel Utility Huge Storage Unit Device V3-11A's Pendant Storage Huge Storage Unit Processor A0-MCA's Component Scanner Protection Makeshift Light Armor Plating Weapon Makeshift Sword Energy Gun Medium Laser Energy Cannon Particle Cannon Ballistic Gun Light Assault Rifle Ballistic Cannon Improved Light Cannon Launcher Mini Grenade Launcher Special Weapon LU-1G1's Laser Shovel Slashing Weapon Makeshift Sword Special Melee Weapon Datajack Build | -11 -10 -10 -9 -9 -6 ------- Run | Yrd Mat Sub Rec Scr Fac Slots Evolved 8 | . . . . . 8 Power 1 | . . . . . 1 Propulsion 2 | . . . . . 2 Utility 5 | . . . . . 5 Weapon . | . . . . . . Parts Attached 50 | 8 14 6 2 10 10 Power 7 | 1 3 . . 1 2 Engine 4 | 1 3 . . . . Core 3 | . . . . 1 2 Reactor . | . . . . . . Propulsion 11 | 2 4 1 . 3 1 Treads 7 | 2 3 . . 1 1 Leg . | . . . . . . Wheel 4 | . 1 1 . 2 . Hover . | . . . . . . Flight . | . . . . . . Utility 16 | 2 2 4 1 2 5 Device 5 | 1 . 1 1 . 2 Storage 3 | 1 1 1 . . . Processor 2 | . . . . . 2 Hackware . | . . . . . . Protection 6 | . 1 2 . 2 1 Artifact . | . . . . . . Weapon 16 | 3 5 1 1 4 2 Energy Gun 3 | 3 . . . . . Energy Cannon 6 | . 2 . . 3 1 Ballistic Gun 1 | . 1 . . . . Ballistic Cannon 2 | . 2 . . . . Launcher 1 | . . . . . 1 Special Weapon 1 | . . . . 1 . Impact Weapon . | . . . . . . Slashing Weapon 1 | . . 1 . . . Piercing Weapon . | . . . . . . Special Melee Weapon 1 | . . . 1 . . Unidentified Prototypes 2 | . . 1 . 1 . Parts Lost 11 | . 4 . . 3 4 Power 3 | . 1 . . 1 1 Propulsion 4 | . 2 . . 1 1 Utility 3 | . 1 . . . 2 Weapon 1 | . . . . 1 . Highest Loss Streak 4 | . 2 . . 3 4 To Critical Strikes . | . . . . . . Average Backups 20 | 5 8 23 23 22 18 Power 1 | . 1 1 2 1 . Propulsion 4 | 3 2 4 5 5 3 Utility 6 | . 2 7 8 7 8 Weapon 6 | 1 2 8 7 7 4 Tool/Special . | . . . . . . Unused Backups 38 | . 8 6 4 10 10 Power 1 | . . . . 1 . Propulsion 7 | . 2 . . 3 2 Utility 12 | . 3 . 1 2 6 Weapon 17 | . 3 6 3 4 1 Tool/Special 1 | . . . . . 1 Average Slot Usage (%) 99 | . 99 100 100 99 90 Engine 13 | . 13 14 14 13 . Treads 14 | . 22 14 14 10 12 Wheel 13 | . 5 13 14 17 12 Device 8 | . 2 12 12 5 7 Storage 13 | . 14 14 14 14 6 Protection 5 | . 11 1 1 8 12 Energy Gun 1 | . 10 . . . . Energy Cannon 8 | . 6 14 12 2 12 Ballistic Cannon 2 | . 6 2 . . . Slashing Weapon 9 | . . 11 14 13 . Special Melee Weapon 4 | . . . 1 12 . Peak Build Rating 60 | 7 13 20 20 30 60 Average Rating 17 | 5 8 18 18 19 53 On Entrance 13 | . 7 13 20 17 21 Naked Turns . | . . . . . . Heaviest Build 119 | 14 34 98 98 97 119 Greatest Support 46 | 40 46 46 16 28 22 Greatest Overweight (x) 7 | . 4 6 6 7 5 Average Overweight (x) 4 | . . 4 5 4 4 Largest Inventory Capacity 25 | 8 15 25 25 25 25 Average Capacity 22 | 7 9 24 25 25 25 Most Carried 25 | 7 15 25 25 25 23 Average Carried 21 | 5 9 24 24 24 20 Final Capacity 25 | 8 15 25 25 25 25 Final Carried 25 | 7 15 25 25 24 21 Class Distribution -------------------- 97% | Mutant Dominant Class ---------------- Mutant | -10/Materials Mutant | -10/Subcaves Mutant | -9/Recycling Mutant | -9/Scraptown Derelict-Mutant | -6/Factory Resources | -11 -10 -10 -9 -9 -6 ----------- Run | Yrd Mat Sub Rec Scr Fac Matter Collected 1327 | 280 660 217 50 120 . Remotely . | . . . . . . Salvage Created 1338 | 96 878 . 100 . 264 Parts 67 | 9 50 . 2 . 6 Haulers Intercepted 2 | . 2 . . . . Recyclers Shooed 3 | 1 1 . . . 1 Parts Field Recycled . | . . . . . . Retrieved Matter . | . . . . . . Parts Self-Destructed 22 | . . 21 . 1 . Prevented . | . . . . . . Kills | -11 -10 -10 -9 -9 -6 ------- Run | Yrd Mat Sub Rec Scr Fac Combat Hostiles Destroyed 23 | . 18 . . . 5 Guns 11 | . 11 . . . . Cannons 8 | . 5 . . . 3 AOE 2 | . . . . . 2 Classes Destroyed 10 | 2 6 . . . 2 Builder 1 | . 1 . . . . Tunneler 3 | 2 1 . . . . Hauler 2 | . 2 . . . . Recycler 3 | 1 1 . 1 . . Operator 1 | . 1 . . . . Watcher 1 | . 1 . . . . Swarmer 3 | . 3 . . . . Grunt 18 | . 15 . . . 3 Brawler 1 | . . . . . 1 Sentry 1 | . . . . . 1 Best Kill Streak 4 | 2 4 . 1 . 4 Combat Bots Only 4 | . 4 . . . 4 Max Kills in Single Turn 2 | 1 2 . 1 . 2 Gunslinging . | . . . . . . Exploded 2 | . . . . . 2 Melee . | . . . . . . Uniques/NPCs Destroyed . | . . . . . . Combat | -11 -10 -10 -9 -9 -6 -------- Run | Yrd Mat Sub Rec Scr Fac Hostile Shots Fired 223 | . 64 8 . 46 105 Missed 66 | . 13 2 . 10 41 Hits 157 | . 51 6 . 36 64 Melee 2 | . . . . 2 . Projectile 155 | . 51 6 . 34 64 AOE 1 | . . . . 1 . Critical Strikes 4 | . . . . 1 3 Damage Taken 2134 | . 602 262 . 639 631 Core 226 | . 63 42 . 76 45 Absorbed by Shields 168 | . . . . . 168 Redirected to Shielding 11 | . 11 . . . . Core Remaining (%) 63 | 100 . . . 27 . Volleys Fired 124 | 11 77 18 1 2 15 Largest 2 | 2 2 2 1 2 2 Hottest 136 | 90 90 101 68 136 128 Shots Fired 231 | 22 151 23 2 4 29 Gun 132 | 22 110 . . . . Cannon 97 | . 41 23 2 4 27 Launcher 2 | . . . . . 2 Special . | . . . . . . Kinetic 61 | . 55 6 . . . Thermal 168 | 22 96 17 2 4 27 Explosive 2 | . . . . . 2 Electromagnetic . | . . . . . . Robot Hit Streak 13 | 4 9 13 1 3 6 Robot Miss Streak 4 | 1 4 1 1 2 2 Penetration Max . | . . . . . . Secondary Targets . | . . . . . . Shots Hit Robots 147 | 15 97 11 2 2 20 Core Hits 59 | 4 37 1 2 . 15 Critical Kills . | . . . . . . Critical Parts Destroyed . | . . . . . . Critical Strikes 2 | . 2 . . . . Burn 2 | . 2 . . . . Melee Attacks 56 | . . 49 5 2 . Impact . | . . . . . . Slashing 56 | . . 49 5 2 . Piercing . | . . . . . . Sneak Attacks . | . . . . . . Combat Hostiles . | . . . . . . Follow-up Attacks . | . . . . . . Damage Inflicted 2513 | 173 1223 249 108 42 718 Guns 963 | 173 790 . . . . Cannons 1197 | . 429 249 41 42 436 Explosions 282 | . . . . . 282 Melee 67 | . . . 67 . . Ramming 4 | . 4 . . . . Kinetic 466 | . 372 94 . . . Thermal 1694 | 173 847 155 41 42 436 Explosive 282 | . . . . . 282 Electromagnetic . | . . . . . . Impact . | . . . . . . Slashing 67 | . . . 67 . . Piercing . | . . . . . . Highest Corruption 2 | . 2 2 2 1 . Average Corruption 1 | . 2 2 2 1 . Corruption Purged . | . . . . . . Corruption Blocked . | . . . . . . Effects 68 | . 9 46 13 . . Message Errors 12 | . 1 11 . . . Matter Fused 26 | . 3 19 4 . . Heat Flow Errors 11 | . 2 6 3 . . Energy Discharges 6 | . . 3 3 . . Data Loss (minor) 7 | . 2 5 . . . Data Loss (major) 1 | . . . 1 . . Misfires 3 | . 1 1 1 . . Alerts 2 | . . 1 1 . . Overload Shots . | . . . . . . Overflow Damage 1 | . . . . . 1 Projectiles 1 | . . . . . 1 Explosions . | . . . . . . Melee . | . . . . . . Knockbacks 1 | . 1 . . . . Impact . | . . . . . . Kinetic 1 | . 1 . . . . Secondary . | . . . . . . Self-Inflicted Damage . | . . . . . . Shots . | . . . . . . Rammed 1 | . 1 . . . . Targets Rammed 1 | . 1 . . . . Kicked . | . . . . . . Crushed . | . . . . . . Highest Temperature 399 | 85 264 223 201 210 399 Average Temperature 82 | 38 79 79 67 158 103 Received Heat Transfer 782 | . 321 18 . 228 215 Siege Activations . | . . . . . . Martial Activations . | . . . . . . Shielding Activations . | . . . . . . Robots Disrupted . | . . . . . . Combat Hostiles . | . . . . . . Robots Corrupted . | . . . . . . Combat Hostiles . | . . . . . . Parts Fried . | . . . . . . Impact Corruptions . | . . . . . . Robots Melted 2 | . 2 . . . . Combat Hostiles 2 | . 2 . . . . Parts Melted 6 | . 5 . . . 1 Heat Transferred 3978 | 459 2372 259 74 74 740 Parts Sabotaged . | . . . . . . Parts Stolen . | . . . . . . Parts Stripped . | . . . . . . Power Chain Reactions . | . . . . . . Alert | -11 -10 -10 -9 -9 -6 ------- Run | Yrd Mat Sub Rec Scr Fac Maximum Alert Level . | . . . . . . Low Security (%) 100 | 100 100 . 100 . 100 Level 1 . | . . . . . . Level 2 . | . . . . . . Level 3 . | . . . . . . Level 4 . | . . . . . . Level 5 . | . . . . . . High Security . | . . . . . . Max Security . | . . . . . . Peak Influence 117 | 5 114 . 64 . 117 Initial . | . . . . . . Average 38 | 1 54 . 17 . 25 Influence Increases 1280 | 15 543 240 302 . 180 Destroy 0b10 Robot/C 680 | . 360 160 60 . 100 Destroy 0b10 Robot/NC 60 | 15 35 . 10 . . Destroy Leader 96 | . 76 . . . 20 Allied During Kill 72 | . . 50 22 . . Successful Hack 53 | . 27 . 26 . . Select Force Hacks 180 | . . . 180 . . Destroy Structure 19 | . . . 4 . 15 Lose Combat Pursuer 120 | . 45 30 . . 45 Influence Decreases 1203 | 15 509 274 302 . 103 Entered New Map 17 | . . 17 . . . Time Decay 1013 | 15 479 194 262 . 63 Lost Part 70 | . 30 . . . 40 Lost Ally 103 | . . 63 40 . . Squads Dispatched 5 | . 4 . . . 1 Investigation 3 | . 3 . . . . Extermination . | . . . . . . Reinforcement 2 | . 1 . . . 1 Assault . | . . . . . . Garrison . | . . . . . . Intercept . | . . . . . . Searches Triggered . | . . . . . . Construction Impeded . | . . . . . . Haulers Reinforced . | . . . . . . Active Scanning Responses . | . . . . . . Cargo Convoy Interrupts . | . . . . . . Stealth | -11 -10 -10 -9 -9 -6 --------- Run | Yrd Mat Sub Rec Scr Fac Distress Signals 3 | . 3 . . . . Communications Jammed . | . . . . . . Distress Signals . | . . . . . . Times Spotted 78 | . 38 20 . 12 8 Peak Tracking Total 6 | . 6 2 . 5 4 Tactical Retreats 5 | . 3 1 . . 1 Traps | -11 -10 -10 -9 -9 -6 ------- Run | Yrd Mat Sub Rec Scr Fac Traps Triggered 8 | . 4 4 . . . Indirectly . | . . . . . . Trap Hack Attempts . | . . . . . . Triggered . | . . . . . . Disarmed . | . . . . . . Reprogrammed . | . . . . . . Reused . | . . . . . . Traps Extracted . | . . . . . . Installed . | . . . . . . Triggered . | . . . . . . Machines | -11 -10 -10 -9 -9 -6 ---------- Run | Yrd Mat Sub Rec Scr Fac Machines Disabled 4 | . . 2 . 2 . Max in Single Turn 1 | . . 1 . 1 . Machines Repaired . | . . . . . . Machines Dismantled . | . . . . . . Machines Sabotaged . | . . . . . . Overloaded Fab Kills . | . . . . . . Hacking | -11 -10 -10 -9 -9 -6 --------- Run | Yrd Mat Sub Rec Scr Fac Machines Accessed 27 | . 8 3 12 4 . Terminals 13 | . 7 . 6 . . Fabricators . | . . . . . . Repair Stations . | . . . . . . Recycling Units 7 | . 1 . 6 . . Scanalyzers . | . . . . . . Garrison Access . | . . . . . . Total Hacks 69 | . 21 5 23 20 . Successful 46 | . 7 5 14 20 . Failed 23 | . 14 . 9 . . Catastrophic 3 | . 1 . 2 . . Database Lockouts . | . . . . . . Manual 25 | . 12 . 13 . . Terminals 37 | . 20 . 17 . . Fabricators . | . . . . . . Repair Stations . | . . . . . . Recycling Units 7 | . 1 . 6 . . Scanalyzers . | . . . . . . Garrison Access . | . . . . . . Terminal Hacks 34 | . 4 5 5 20 . Record 23 | . . 3 1 19 . Robot Analysis 2 | . 1 . 1 . . Prototype ID Bank 1 | . 1 . . . . Open Door 1 | . . 1 . . . Branch Access Points 1 | . . . 1 . . Recall Investigation 2 | . 1 . 1 . . Hauler Manifests 2 | . 1 . 1 . . Proto ID Catalog 2 | . . 1 . 1 . Fabricator Hacks . | . . . . . . Repair Station Hacks . | . . . . . . Recycling Unit Hacks 1 | . 1 . . . . Retrieve Components 1 | . 1 . . . . Scanalyzer . | . . . . . . Garrison Access Hacks . | . . . . . . Unauthorized Hacks 11 | . 2 . 9 . . Terminals 5 | . 2 . 3 . . Botnet 5 | . 2 . 3 . . Fabricators . | . . . . . . Repair Stations . | . . . . . . Recycling Units 6 | . . . 6 . . Tunnel 6 | . . . 6 . . Scanalyzers . | . . . . . . Garrison Access . | . . . . . . Data Cores Recovered 1 | . 1 . . . . Used . | . . . . . . Hacking Detections 13 | . 7 . 6 . . Full Trace Events 1 | . 1 . . . . Feedback Events . | . . . . . . Feedback Blocked . | . . . . . . Robot Schematics Acquired . | . . . . . . Robots Built . | . . . . . . Authchips . | . . . . . . Time . | . . . . . . Total Robot Build Rating . | . . . . . . Part Schematics Acquired . | . . . . . . Parts Built . | . . . . . . Authchips . | . . . . . . Time . | . . . . . . Total Part Build Rating . | . . . . . . Parts Repaired . | . . . . . . Time . | . . . . . . Parts Recycled . | . . . . . . Recycled Matter . | . . . . . . Retrieved Matter . | . . . . . . Retrieved Components 10 | . 10 . . . . Parts Scanalyzed . | . . . . . . Part Schematics Acquired . | . . . . . . Parts Damaged . | . . . . . . Bothacking | -11 -10 -10 -9 -9 -6 ------------ Run | Yrd Mat Sub Rec Scr Fac Used RIF Installer . | . . . . . . Robots Hacked . | . . . . . . Non-combat . | . . . . . . Combat . | . . . . . . Robot Hacks Applied . | . . . . . . Relay Couplers Released . | . . . . . . Fabnet Peak Effective % . | . . . . . . Robots Rewired . | . . . . . . Allies Hacked . | . . . . . . Hacks Repelled . | . . . . . . Allies | -11 -10 -10 -9 -9 -6 -------- Run | Yrd Mat Sub Rec Scr Fac Total Allies 14 | . . 14 . . . Largest Group 8 | . . 8 7 5 . Highest-Rated Group 152 | . . 152 133 95 . Highest-Rated Ally 19 | . . 19 19 19 . Total Orders . | . . . . . . Ally Attacks 120 | . . 73 7 40 . Total Damage 1834 | . . 1099 130 605 . Kills 16 | . . 9 3 4 . Allies Corrupted . | . . . . . . Allies Melted 3 | . . . . 3 . Intel | -11 -10 -10 -9 -9 -6 ------- Run | Yrd Mat Sub Rec Scr Fac Active Infowar (turns) 2564 | 64 258 . 798 1255 189 Seismic 2564 | 64 258 . 798 1255 189 Robot Analysis Total 2 | . 1 . 1 . . Derelict Logs Recovered 7 | . . 2 . 5 . Drone Launches . | . . . . . . Drone Recoveries . | . . . . . . Exploration | -11 -10 -10 -9 -9 -6 ------------- Run | Yrd Mat Sub Rec Scr Fac Turns Passed 9469 | 122 1657 3446 870 3124 250 Spaces Moved 5216 | 48 983 1844 476 1755 110 Core 7 | 6 1 . . . . Treads 572 | 42 521 9 . . . Legs . | . . . . . . Wheels 4637 | . 461 1835 476 1755 110 Hover . | . . . . . . Flight . | . . . . . . Fastest Speed 50 | 50 95 160 175 140 145 Average Speed 164 | 146 131 174 176 170 158 Slowest Speed 250 | 160 250 190 190 195 160 Overloaded Moves . | . . . . . . Propulsion Burnouts . | . . . . . . Robots Hopped . | . . . . . . Potential Cave-ins 4 | . . . . . 4 Cave-ins Triggered . | . . . . . . Exploration Rate (%) 65 | 4 99 97 99 88 4 Regions Visited 5 Branch Regions 3 Pre-discovered Areas 10 | . . 2 6 2 . Known Exits Taken 1 | . . . . 1 . Unknown Exits Taken 4 | 1 1 1 1 . . Scrap Searched 21 | . . 15 . 6 . Spaces Dug 25 | . . 9 4 4 8 Terrain Destroyed 35 | . . 9 4 1 21 Melee 13 | . . 9 4 . . Projectile 2 | . . . . . 2 AOE 11 | . . . . . 11 Terrain Rammed . | . . . . . . Walls Destroyed . | . . . . . . Machines Disabled . | . . . . . . Actions | -11 -10 -10 -9 -9 -6 --------- Run | Yrd Mat Sub Rec Scr Fac Total 5831 | 75 1206 1999 504 1895 152 Wait 250 | . 89 50 13 92 6 Move 5211 | 47 982 1843 475 1754 110 Hop . | . . . . . . Pick Up 73 | 8 21 21 4 15 4 Fast Attach 16 | 6 7 . . 2 1 Attach 15 | 2 3 . . 2 8 Detach 1 | 1 . . . . . Swap 32 | . 7 6 2 9 8 Drop 52 | . 19 12 4 17 . Fire 124 | 11 77 18 1 2 15 Melee 56 | . . 49 5 2 . Ram . | . . . . . . Kick . | . . . . . . Crush 1 | . 1 . . . . Escape Stasis . | . . . . . . Rewire . | . . . . . . Trap . | . . . . . . Miscellaneous . | . . . . . . Route ------- -11/Scrapyard -10/Materials (discovered 6 exits: [*Mat x3] / [*Min x2] / *Sub) -10/Subcaves (discovered 3 exits: [*Mat x2] / *Rec) -9/Recycling (discovered 2 exits: [*Fac] / *Scr) -9/Scraptown (discovered 2 exits: *Fac x2) -6/Factory (discovered 1 exit: Fac) History --------- Turn | Location | Event 13 | -11/Scrapyard | Discovered new exit (range 16) 123 | -11/Scrapyard | Entered Materials 307 | -10/Materials | Build established: Mutant 486 | -10/Materials | Discovered new exit (range 6) 565 | -10/Materials | Discovered new exit (range 16) 773 | -10/Materials | Discovered new exit (range 12) 1033 | -10/Materials | Discovered new exit (range 8) 1223 | -10/Materials | Discovered new exit (range 8) 1389 | -10/Materials | Discovered new exit (range 16) 1780 | -10/Materials | Entered Subcaves 1781 | -10/Subcaves | Approached by a straggling Scientist 1782 | -10/Subcaves | Ambushed by Subdwellers from Twisted Machinery 1943 | -10/Subcaves | Learned location of Zion (-6) 1943 | -10/Subcaves | Met a Zionite searching for "candidates" 1948 | -10/Subcaves | A swath of the cavern ceiling suddenly collapsed 1979 | -10/Subcaves | Lost 3 allies 2024 | -10/Subcaves | Visited triangular shrine 2035 | -10/Subcaves | Found Prototype Device 2037 | -10/Subcaves | Identified V3-11A's Pendant 2042 | -10/Subcaves | Befriended Subdweller 2136 | -10/Subcaves | Disturbed a concealed Subdweller 2137 | -10/Subcaves | Befriended Subdweller 2295 | -10/Subcaves | Visited Clippyterm 2301 | -10/Subcaves | Learned location of Deep Caves (-6) 2301 | -10/Subcaves | Learned Factory fabricator intel 2328 | -10/Subcaves | Disturbed a concealed Subdweller 2332 | -10/Subcaves | Befriended Subdweller 2407 | -10/Subcaves | Befriended Subdweller 2422 | -10/Subcaves | Befriended Subdweller 2472 | -10/Subcaves | Befriended Subdweller 2482 | -10/Subcaves | Befriended Subdweller 2487 | -10/Subcaves | Befriended Subdweller 2792 | -10/Subcaves | Befriended Subdweller 2792 | -10/Subcaves | Befriended Subdweller 2932 | -10/Subcaves | Learned 2 Materials zone layouts 2965 | -10/Subcaves | Visited 4L-MR0's lab 2986 | -10/Subcaves | Found Gun Armor 3298 | -10/Subcaves | Learned Materials stockpile data 3313 | -10/Subcaves | Lost 3 allies 3314 | -10/Subcaves | Discovered new exit (range 7) 3315 | -10/Subcaves | Shifting Twisted Machinery released Piercing Trap 3317 | -10/Subcaves | Shifting Twisted Machinery released Battle Cannon 3419 | -10/Subcaves | Discovered new exit (range 12) 3521 | -10/Subcaves | Shifting Twisted Machinery released Sub. Shrapnel Launcher 3573 | -10/Subcaves | Shifting Twisted Machinery released Mak. Kinetic Plating 3573 | -10/Subcaves | Shifting Twisted Machinery released Sub. Beam Cannon 3819 | -10/Subcaves | Disturbed a concealed Subdweller 3822 | -10/Subcaves | Befriended Subdweller 3977 | -10/Subcaves | Befriended Subdweller 3977 | -10/Subcaves | Befriended Subdweller 3999 | -10/Subcaves | A swath of the cavern ceiling suddenly collapsed 4476 | -10/Subcaves | Ambushed by Subdweller buried in earth 4477 | -10/Subcaves | Befriended Subdweller 4932 | -10/Subcaves | Discovered new exit (range 11) 5226 | -10/Subcaves | Entered Recycling 5226 | -9/Recycling | Accompanied by 7 allies 5665 | -9/Recycling | Discovered new exit (range 16) 6025 | -9/Recycling | Scanned before Scraplab entrance 6051 | -9/Recycling | Entered Scraplab 6087 | -9/Recycling | Discovered new exit (range 2) 6096 | -9/Recycling | Entered Scraptown 6096 | -9/Scraptown | Accompanied by 5 allies 6096 | -9/Scraptown | System corruption cleaned by C-Scrubber 6413 | -9/Scraptown | Scanned Subdweller tech in exchange for log data 6416 | -9/Scraptown | Learned Factory emergency access door positions 6418 | -9/Scraptown | Learned location of Armory (-3) 6420 | -9/Scraptown | Learned Factory trap positions 6422 | -9/Scraptown | Learned 12 Factory zone layouts 6565 | -9/Scraptown | Delivered V3-11A's Pendant to T0-NE2 in exchange for information 6625 | -9/Scraptown | Visited TADAMA 6653 | -9/Scraptown | Visited Cave Peace 6742 | -9/Scraptown | Visited The Evicted 6804 | -9/Scraptown | Visited Shadow of the Wyrm 6822 | -9/Scraptown | Visited Comm Corps 6893 | -9/Scraptown | Visited Red Mages 6977 | -9/Scraptown | Visited Artisan Demo Area 7302 | -9/Scraptown | Visited UFD Registry 7302 | -9/Scraptown | Registered with UFD as "Roughstep" 7337 | -9/Scraptown | Visited A0-MCA Data Center 7352 | -9/Scraptown | Given a C rating by A0-MCA 7356 | -9/Scraptown | Found A0-MCA's Component Scanner 7389 | -9/Scraptown | Visited LU-1G1's Boring Crew 7452 | -9/Scraptown | Visited Chapter 10 7473 | -9/Scraptown | Visited Derelict Rescue Squad 7496 | -9/Scraptown | Visited Infowarlord's Domain 7512 | -9/Scraptown | Found Exp. Terrain Scan Processor 7548 | -9/Scraptown | Visited Scrapoid Pod Storage 7567 | -9/Scraptown | Visited Science Guys 7640 | -9/Scraptown | Visited Science Testing Area 7668 | -9/Scraptown | Visited DA-N13 Charitable Foundation 7696 | -9/Scraptown | Visited Observation Area 7805 | -9/Scraptown | Found DCF Scrap (29 items) 7987 | -9/Scraptown | Delivered Scrap Shield to a Scientist 8698 | -9/Scraptown | Found DRS Beacon 8749 | -9/Scraptown | Met Optimus 8749 | -9/Scraptown | Accepted into 0bPrime 9064 | -9/Scraptown | Civil war broke out across Scraptown 9073 | -9/Scraptown | Found Prototype Special Weapon 9073 | -9/Scraptown | Identified LU-1G1's Laser Shovel 9100 | -9/Scraptown | Found Prototype Processor 9138 | -9/Scraptown | Identified exit to Factory 9199 | -9/Scraptown | Optimus destroyed in the chaos of civil war 9206 | -9/Scraptown | Lost 13 allies 9208 | -9/Scraptown | Core integrity fell below 50% 9220 | -9/Scraptown | Entered Factory 9220 | -6/Factory | Evolved 8 slots: Power x1, Propulsion x2, Utility x5 9221 | -6/Factory | Identified exit to Factory 9222 | -6/Factory | Loaded intel: 91 trap records 9224 | -6/Factory | Loaded intel: 6 fabricator locations 9226 | -6/Factory | Identified Expert System 9247 | -6/Factory | Lost 3 parts (1p1n1w) 9470 | -6/Factory | Self-destructed Last Messages --------------- 09461_ U-05 Engineer lays Concrete. 09461_ R-10 Processor collects Gatling Laser. 09462_ U-05 Engineer lays Concrete. 09463_ H-61 Shepherd calls for reinforcements. 09463_ ALERT: Hostile activity reported, dispatching reinforcements to area. 09463_ Penetrated by Slug. 09463_ Wheel destroyed. 09463_ Critical hit (Blast). 09463_ U-05 Engineer lays Concrete. 09464_ R-10 Processor collects Adv. Heat Sink. 09465_ U-05 Engineer lays Concrete. 09465_ R-10 Processor collects Hvy. Laser. 09466_ U-05 Engineer lays Concrete. 09467_ Penetrated by Slug. 09467_ Hardlight Generator destroyed. 09467_ Expert System destroyed. 09467_ Critical hit (Blast). 09468_ U-05 Engineer lays Concrete. 09470_ U-05 Engineer builds a Wall. Map ----- +----------------------------------------------------+ | ????????????????+ ????????????# #?????????# # | | ????????????????# ???????????# #?????????# # | | ???????+????????# ???????????# #?????????# # | | ????????????????# ############ ########### # | | ????????????????# | | ????????????????# | | ????????????????# | | ????????????????# """"""" | | ????????????????# """"""" | | ???????????#########+################# """"""" | | ???????????+ ##???????????# """"""" | | ???????????# #????????????# | | ???????????# #?###????????# """"""" | | ???????????# ## ###??????# """"""" | | ???????????# * # # ######## """"""" | | ??^????????# # u # """"""" | | ???????????# %/%[ # | | ???????????# # # | | ??^????????+ [ #Ru R # "" "" | | ??^????????# # % # "F "" | | ??^????????+ # + """"" | | ??^????????# /#H === # | | ^ #????##+##+######## === # | | #######?????#???????????# === ###+#+## | | #??????##?????????????# #??????# | | #??????# ?????????????#@ #??????# | | " #??????# ?????????????# % #??????# | | " #?###### ?????????????#;;###########??????# | | " #?# # ?????????????# ##????????????????# | | #?# # ?????????????###?????????????????# | | +##?# # ?????????????????????????????????# | | #### # ?????????????????????????????????# | | + # ?????????????????????????????????# | | ##### # ?????????????????????????????????# | | ###?# # ?????????????????????????????????+ | | #?# # ?????????????????????????????????? | | #?# # ???????????????????????????????????? | | #?###### ??????????????????????????????????????? | | #??????# ??????????????????????????????????????? | | #??????# ??????????????????????????????????????? | | #??????# ??????????????????????????????????????? | | #??????# ??????????????????????????????????????? | | ######## ??????????????????????????????????????? | | " # ??????????????????????????????????????? | | " # ??????????????????????????????????????? | | " # ??????????????????????????????????????? | | # ??????????????????????????????????????? | | ### ?????????????????????????""" """ + | | ??# ###?????????????????????????""" """ # | | ### # ????????????????????????? # | +----------------------------------------------------+ Best States ------------- Heat Dissipation 56 Energy Generation 27 Energy Capacity 370 Matter Stores 300 Matter Capacity 300 Sight Range 16 Terrain Scan Density 10 Armor Coverage 200 Resistance: KI 10 Core Shielding 20 Evasion (%) 41 Recoil Reduction 2 Item Schematics ----------------- None Robot Schematics ------------------ None Fabricated ------------ Nothing Repaired ---------- Nothing Alien Tech Used ----------------- None Achievements -------------- None Challenges ------------ None Game ------ Seed CoordinationAmuletCloak Manual? 0 Play Time 01:21:33 Cumulative 161.1 hours Start 2025.05.17 @ 12:03:48 End 2025.05.18 @ 01:19:50 Sessions 5 Manual Loads 0 Difficulty Rogue Special Mode None Game No. 112 Rogue 112 Adventurer 0 Explorer 0 Win Type - Total 6 Types 5/0/1/0/0/0/0/0/0/0 Lore% 64 Gallery% 58 Achievement% 54 Wizard Run 0 Options --------- Layout 0 ASCII 0 Keyboard 1 Movement Numpad Keybinds 0 Fullscreen 1 Font 36/Proggy Map View 76x50 Zoom Use 0% Tactical HUD 1 Map Filters NONE Filters NONE Steam 1 RUN: df776bd3-0fa6-44a9-a804-b329d64a6f43